Cogmind - Beta 10.2 @@@ ROGUE MODE // 2020.10.29 @ 17:46:53 // Halloween2020/ForbiddenLore Player: Morgweiler Result: Self-destructed Performance ------------- Evolutions (2) 1000 Regions Visited (3) 600 Robots Destroyed (48) 240 Value Destroyed (1630) 1630 Prototype IDs (3) 60 Alien Tech Used (0) 0 Bonus (73) 73 TOTAL SCORE: 3603 Bonus ------- High Alert Combat Kills 73 Cogmind --------- Core Integrity 269/550 Matter 300/300 Energy 100/100 System Corruption 3% Temperature Cool (0) Movement Rolling (100) Ox1 Location -8/Materials Parts ------- > --- POWER (1) -------- (None) > --- PROPULSION (2) --- Wheel Compact Wheel > --- UTILITY (4) ------ Improved Heat Sink High-capacity Storage Unit Hacking Suite System Shield > --- WEAPON (4) ------- Heavy Hammer > --- INVENTORY (12) --- Aluminum Leg Carbon-fiber Leg Wheel Wheel Large Storage Unit Large Storage Unit Integration Mediator Datajack Peak State ------------ > --- POWER ------------ Light Nuclear Core > --- PROPULSION ------- Improved Treads Improved Treads > --- UTILITY ---------- Improved Heat Sink High-capacity Storage Unit Hacking Suite Integration Mediator > --- WEAPON ----------- EM Pulse Gun Small Laser Beam Rifle Beam Cannon > --- INVENTORY -------- Wheel Compact Wheel Large Storage Unit Large Storage Unit Structural Scanner System Shield Light EM Pulse Cannon Datajack [Rating: 22] Favorites ----------- Power Ion Engine Engine Ion Engine Power Core Light Nuclear Core Propulsion Improved Treads Treads Improved Treads Leg Carbon-fiber Leg Wheel Compact Wheel Utility Large Storage Unit Device Improved Heat Sink Storage Large Storage Unit Processor Visual Processing Unit Hackware Hacking Suite Protection Light Armor Plating Weapon Particle Gun Energy Gun Particle Gun Energy Cannon Beam Cannon Ballistic Gun Assault Rifle Impact Weapon Heavy Hammer Build | -11 -10 -9 -8 ------- Run | Scr Mat Mat Mat Slots Evolved 4 | . . 2 2 Power . | . . . . Propulsion . | . . . . Utility 2 | . . . 2 Weapon 2 | . . 2 . Parts Attached 66 | 7 15 15 29 Power 8 | 1 . 1 6 Engine 5 | 1 . 1 3 Core 3 | . . . 3 Reactor . | . . . . Propulsion 15 | 2 4 2 7 Treads 4 | . 2 2 . Leg 5 | . . . 5 Wheel 6 | 2 2 . 2 Hover . | . . . . Flight . | . . . . Utility 17 | 2 6 2 7 Device 7 | . 2 . 5 Storage 6 | 2 3 1 . Processor 1 | . 1 . . Hackware 2 | . . 1 1 Protection 1 | . . . 1 Artifact . | . . . . Weapon 26 | 2 5 10 9 Energy Gun 15 | 1 . 8 6 Energy Cannon 6 | . 2 2 2 Ballistic Gun 4 | 1 3 . . Ballistic Cannon . | . . . . Launcher . | . . . . Special Weapon . | . . . . Impact Weapon 1 | . . . 1 Slashing Weapon . | . . . . Piercing Weapon . | . . . . Special Melee Weapon . | . . . . Unidentified Prototypes 1 | . . . 1 Parts Lost 20 | . 3 1 16 Power 3 | . . . 3 Propulsion 2 | . 1 . 1 Utility 5 | . 1 . 4 Weapon 10 | . 1 1 8 Highest Loss Streak 9 | . 2 1 9 Average Slot Usage (%) 94 | . 99 99 83 Engine 9 | . 14 11 3 Core 1 | . . . 4 Treads 8 | . 5 7 12 Leg 1 | . . . 4 Wheel 13 | . 21 14 1 Device 5 | . 4 4 7 Storage 15 | . 21 11 9 Hackware 5 | . . 6 11 Protection 1 | . . . 3 Energy Gun 14 | . 6 22 17 Energy Cannon 8 | . 1 21 7 Ballistic Gun 8 | . 19 . . Naked Turns . | . . . . Heaviest Build 52 | 16 41 50 52 Greatest Support 46 | 26 40 46 46 Greatest Overweight (x) 4 | . 2 1 4 Average Overweight (x) . | . . . 1 Largest Inventory Capacity 16 | 8 16 12 12 Average Capacity 12 | 6 13 11 12 Most Carried 13 | 5 13 12 11 Average Carried 8 | 2 7 10 8 Final Capacity 12 | 8 10 12 12 Final Carried 11 | 5 7 11 8 Class Distribution -------------------- 47% | Mutant 27% | Gunner 12% | Scavenger-Tank 6% | Hacker-Mutant 5% | Scavenger-Skirmisher Dominant Class ---------------- Mutant | -10/Materials Gunner | -9/Materials Scavenger-Tank | -8/Materials Resources | -11 -10 -9 -8 ----------- Run | Scr Mat Mat Mat Matter Collected 1042 | 277 336 140 289 Remotely . | . . . . Salvage Created 1999 | 106 609 454 830 Parts 107 | 8 35 25 39 Haulers Intercepted . | . . . . Recyclers Shooed 3 | . 3 . . Parts Field Recycled . | . . . . Retrieved Matter . | . . . . Parts Self-Destructed . | . . . . Prevented . | . . . . Kills | -11 -10 -9 -8 ------- Run | Scr Mat Mat Mat Combat Hostiles Destroyed 35 | . 11 9 15 Melee 2 | . . . 2 Guns 21 | . 11 3 7 Cannons 12 | . . 6 6 Classes Destroyed 10 | 2 4 3 1 Worker 5 | . 2 . 3 Tunneler 1 | 1 . . . Recycler 2 | 1 1 . . Operator 1 | . . 1 . Watcher 4 | . 3 1 . Swarmer 1 | . 1 . . Grunt 30 | . 10 6 14 Duelist 1 | . . 1 . Sentry 2 | . . 2 . Hunter 1 | . . . 1 Best Kill Streak 6 | 1 6 4 5 Combat Bots Only 5 | . 5 3 5 Max Kills in Single Turn 2 | 1 2 1 1 Gunslinging . | . . . . Exploded . | . . . . Melee 1 | . . . 1 Uniques/NPCs Destroyed . | . . . . Combat | -11 -10 -9 -8 -------- Run | Scr Mat Mat Mat Damage Taken 2247 | . 614 180 1453 Core 383 | . 90 12 281 Absorbed by Shields . | . . . . Core Remaining (%) 87 | 100 64 97 . Volleys Fired 113 | 7 51 18 37 Largest 4 | 2 2 4 4 Hottest 255 | 60 120 255 246 Shots Fired 288 | 14 102 70 102 Gun 215 | 14 100 30 71 Cannon 73 | . 2 40 31 Launcher . | . . . . Special . | . . . . Kinetic 90 | 7 83 . . Thermal 127 | . 2 48 77 Explosive . | . . . . Electromagnetic 71 | 7 17 22 25 Robot Hit Streak 16 | 4 16 11 11 Robot Miss Streak 5 | 1 3 5 5 Penetration Max . | . . . . Secondary Targets 1 | . 1 . . Max Gunslinging Chain 1 | . 1 . . Shots Hit Robots 182 | 10 65 39 68 Core Hits 96 | 3 31 19 43 Critical Hits 2 | . 1 . 1 Critical Kills 1 | . . . 1 Critical Parts Destroyed 1 | . 1 . . Melee Attacks 5 | . . . 5 Impact 5 | . . . 5 Slashing . | . . . . Piercing . | . . . . Sneak Attacks 1 | . . . 1 Combat Hostiles . | . . . . Follow-up Attacks . | . . . . Damage Inflicted 2719 | 99 894 598 1128 Guns 1849 | 99 876 226 648 Cannons 732 | . 18 372 342 Explosions . | . . . . Melee 112 | . . . 112 Ramming 26 | . . . 26 Kinetic 735 | 32 703 . . Thermal 1138 | . 18 386 734 Explosive . | . . . . Electromagnetic 708 | 67 173 212 256 Impact 112 | . . . 112 Slashing . | . . . . Piercing . | . . . . Highest Corruption 3 | . . . 3 Average Corruption 2 | . . . 2 Corruption Purged . | . . . . Effects 10 | . . . 10 Message Errors 2 | . . . 2 Energy Discharges 1 | . . . 1 Data Loss (minor) 2 | . . . 2 Targeting Errors 5 | . . . 5 Overload Shots . | . . . . Overflow Damage 17 | . . 17 . Projectiles 17 | . . 17 . Explosions . | . . . . Melee . | . . . . Knockbacks 1 | . . . 1 Impact 1 | . . . 1 Kinetic . | . . . . Secondary . | . . . . Self-Inflicted Damage 7 | . . . 7 Shots . | . . . . Rammed 8 | . . . 8 Targets Rammed 12 | . . . 12 Kicked 4 | . . . 4 Crushed . | . . . . Highest Temperature 607 | 40 40 439 607 Average Temperature 170 | 20 16 152 254 Received Heat Transfer 1041 | . 333 87 621 Effects 28 | . . 3 25 Shutdowns 7 | . . . 7 Energy Bleed 5 | . . 1 4 Interference 3 | . . . 3 Matter Decay 3 | . . . 3 Short Circuit 1 | . . . 1 Damage (minor) 6 | . . . 6 Damage (major) 2 | . . 2 . Damage (core) 1 | . . . 1 Siege Activations . | . . . . Robots Corrupted . | . . . . Combat Hostiles . | . . . . Parts Fried 3 | 1 2 . . Impact Corruptions . | . . . . Robots Melted . | . . . . Combat Hostiles . | . . . . Parts Melted 5 | . . 3 2 Heat Transferred 2570 | . 37 851 1682 Parts Sabotaged . | . . . . Parts Stolen . | . . . . Parts Stripped . | . . . . Power Chain Reactions . | . . . . Missiles Intercepted . | . . . . Alert | -11 -10 -9 -8 ------- Run | Scr Mat Mat Mat Peak Influence 491 | 10 448 491 441 Initial 189 | . 6 189 137 Average 230 | 3 166 340 260 Maximum Alert Level 2 | . 2 2 2 Low Security (%) 41 | 100 67 1 32 Level 1 44 | . 25 76 49 Level 2 13 | . 6 22 18 Level 3 . | . . . . Level 4 . | . . . . Level 5 . | . . . . High Security . | . . . . Max Security . | . . . . Squads Dispatched 8 | . 2 2 4 Investigation 2 | . 2 . . Extermination . | . . . . Reinforcement 6 | . . 2 4 Assault . | . . . . Garrison . | . . . . Intercept . | . . . . Construction Impeded 1 | . . . 1 Haulers Reinforced . | . . . . Stealth | -11 -10 -9 -8 --------- Run | Scr Mat Mat Mat Distress Signals 4 | . 1 1 2 Communications Jammed . | . . . . Distress Signals . | . . . . Times Spotted 63 | . 21 15 27 Peak Tracking Total 7 | . 5 3 7 Tactical Retreats 5 | . 4 . 1 Traps | -11 -10 -9 -8 ------- Run | Scr Mat Mat Mat Traps Triggered 3 | . 2 . 1 Indirectly 2 | . 2 . . Trap Hack Attempts . | . . . . Triggered . | . . . . Disarmed . | . . . . Reprogrammed . | . . . . Reused . | . . . . Traps Extracted . | . . . . Installed . | . . . . Triggered . | . . . . Machines | -11 -10 -9 -8 ---------- Run | Scr Mat Mat Mat Machines Disabled 8 | . 3 1 4 Max in Single Turn 3 | . 3 1 1 Machines Sabotaged . | . . . . Garrisons Compromised . | . . . . Overloaded Fab Kills . | . . . . Fab Network Shutdowns . | . . . . Hacking | -11 -10 -9 -8 --------- Run | Scr Mat Mat Mat Machines Accessed 13 | . 6 4 3 Terminals 10 | . 5 2 3 Fabricators . | . . . . Repair Stations 1 | . 1 . . Recycling Units 1 | . . 1 . Scanalyzers 1 | . . 1 . Garrison Access . | . . . . Total Hacks 31 | . 13 8 10 Successful 18 | . 7 5 6 Failed 13 | . 6 3 4 Catastrophic 2 | . 1 1 . Database Lockouts . | . . . . Manual . | . . . . Terminals 26 | . 11 5 10 Fabricators . | . . . . Repair Stations 2 | . 2 . . Recycling Units 1 | . . 1 . Scanalyzers 2 | . . 2 . Garrison Access . | . . . . Terminal Hacks 13 | . 5 2 6 Prototype ID Bank 1 | . . . 1 Level Access Points 1 | . 1 . . Branch Access Points 1 | . . . 1 Emergency Access Points 3 | . 1 . 2 Alert Level 1 | . 1 . . Patrol Status 2 | . 2 . . Transport Status 1 | . . . 1 Recall Assault 1 | . . 1 . Registered Components 1 | . . 1 . Zone Layout 1 | . . . 1 Fabricator Hacks . | . . . . Repair Station Hacks 2 | . 2 . . Scan Component 1 | . 1 . . Repair 1 | . 1 . . Recycling Unit Hacks 1 | . . 1 . Retrieve Components 1 | . . 1 . Scanalyzer 2 | . . 2 . Insert Component 1 | . . 1 . Analyze 1 | . . 1 . Garrison Access Hacks . | . . . . Unauthorized Hacks . | . . . . Terminals . | . . . . Fabricators . | . . . . Repair Stations . | . . . . Recycling Units . | . . . . Scanalyzers . | . . . . Garrison Access . | . . . . Data Cores Recovered . | . . . . Used . | . . . . Hacking Detections 9 | . 4 3 2 Full Trace Events . | . . . . Feedback Events . | . . . . Feedback Blocked . | . . . . Robot Schematics Acquired . | . . . . Robots Built . | . . . . Matter . | . . . . Time . | . . . . Total Robot Build Rating . | . . . . Part Schematics Acquired 1 | . . 1 . Parts Built . | . . . . Matter . | . . . . Time . | . . . . Total Part Build Rating . | . . . . Parts Repaired 1 | . 1 . . Time 26 | . 26 . . Parts Recycled . | . . . . Recycled Matter . | . . . . Retrieved Matter . | . . . . Retrieved Components 3 | . . 3 . Parts Scanalyzed 1 | . . 1 . Part Schematics Acquired 1 | . . 1 . Parts Damaged . | . . . . Bothacking | -11 -10 -9 -8 ------------ Run | Scr Mat Mat Mat Used RIF Installer . | . . . . Robots Hacked . | . . . . Non-combat . | . . . . Combat . | . . . . Robot Hacks Applied . | . . . . Relay Couplers Released . | . . . . Robots Rewired . | . . . . Allies Hacked . | . . . . Hacks Repelled . | . . . . Allies | -11 -10 -9 -8 -------- Run | Scr Mat Mat Mat Total Allies . | . . . . Largest Group . | . . . . Highest-Rated Group . | . . . . Highest-Rated Ally . | . . . . Total Orders . | . . . . Ally Attacks . | . . . . Total Damage . | . . . . Kills . | . . . . Allies Corrupted . | . . . . Allies Melted . | . . . . Intel | -11 -10 -9 -8 ------- Run | Scr Mat Mat Mat Robot Analysis Total . | . . . . Derelict Logs Recovered . | . . . . Drone Launches . | . . . . Drone Recoveries . | . . . . Exploration | -11 -10 -9 -8 ------------- Run | Scr Mat Mat Mat Turns Passed 1838 | 86 737 457 558 Spaces Moved 1034 | 57 479 293 205 Core 2 | 2 . . . Treads 228 | . 28 73 127 Legs 41 | . . . 41 Wheels 763 | 55 451 220 37 Hover . | . . . . Flight . | . . . . Fastest Speed 50 | 50 90 100 100 Average Speed 116 | 88 100 119 161 Slowest Speed 240 | 100 200 180 240 Overloaded Moves . | . . . . Propulsion Burnouts . | . . . . Robots Hopped . | . . . . Cave-ins Triggered . | . . . . Exploration Rate (%) 33 | 5 78 37 15 Regions Visited 3 Branch Regions . Pre-discovered Areas . | . . . . Known Exits Taken 1 | . 1 . . Unknown Exits Taken 2 | 1 . 1 . Scrap Searched . | . . . . Spaces Dug . | . . . . Terrain Destroyed 24 | . 24 . . Melee . | . . . . Projectile . | . . . . AOE 24 | . 24 . . Terrain Rammed . | . . . . Walls Destroyed . | . . . . Machines Disabled . | . . . . Actions | -11 -10 -9 -8 --------- Run | Scr Mat Mat Mat Total 1407 | 76 638 356 337 Wait 105 | 1 68 8 28 Move 1031 | 56 478 292 205 Hop . | . . . . Pick Up 39 | 5 15 14 5 Fast Attach 22 | 7 1 . 14 Attach 12 | . 3 3 6 Detach 7 | . 1 . 6 Swap 32 | . 11 12 9 Drop 29 | . 10 9 10 Fire 113 | 7 51 18 37 Melee 5 | . . . 5 Ram . | . . . . Kick 12 | . . . 12 Crush . | . . . . Escape Stasis . | . . . . Rewire . | . . . . Trap . | . . . . Miscellaneous . | . . . . Route ------- -11/Scrapyard -10/Materials (discovered 5 exits: *Mat x3 / [*Min x2]) -9/Materials -8/Materials (discovered 1 exit: Sto) History --------- Turn | Location | Event 16 | -11/Scrapyard | Discovered new exit (range 14) 87 | -11/Scrapyard | Entered Materials 142 | -10/Materials | Discovered new exit (range 10) 199 | -10/Materials | Repaired Wheel 313 | -10/Materials | Build established: Mutant 435 | -10/Materials | Discovered new exit (range 9) 497 | -10/Materials | Discovered new exit (range 14) 542 | -10/Materials | Identified exit to Materials 824 | -10/Materials | Entered another Materials area 824 | -9/Materials | Evolved 2 slots: Weapon x2 1115 | -9/Materials | Build established: Gunner 1225 | -9/Materials | Discovered new exit (range 16) 1281 | -9/Materials | Entered another Materials area 1281 | -8/Materials | Evolved 2 slots: Utility x2 1433 | -8/Materials | Identified exit to Storage 1655 | -8/Materials | Lost 7 parts (1p3u3w) 1763 | -8/Materials | Core integrity fell below 50% 1788 | -8/Materials | Lost 9 parts (2p1n1u5w) 1839 | -8/Materials | Self-destructed Last Messages --------------- 01789_ K-01 Serf destroyed. 01791_ K-01 Serf collects debris. 01792_ Acquired 19 matter. 01794_ K-01 Serf collects debris. 01795_ Acquired Wheel. 01798_ K-01 Serf collects debris. 01802_ Dropped Carbon-fiber Leg. 01804_ Acquired 15 matter. 01805_ K-01 Serf collects debris. 01805_ Extracted 6 matter. 01808_ K-01 Serf collects debris. 01814_ O-16 Technician: "IFF HANDSHAKE FAILED. SECURING TERMINAL." 01816_ ALERT: Hostiles spotted, dispatching reinforcements to Terminal M012. 01826_ K-01 Serf collects debris. 01838_ W-25 Informer sends out distress signal. 01839_ Connecting with Terminal... >>Layout(Zone) Retrieving Zone 4N layout... Downloaded map data. Map ----- +----------------------------------------------------+ | ???????????????????????" + ^ % %==%#* | | ?????????????????????????# * = = *=# | | ?????????????????????????# % =%^ !######## ## | | ?????????????????????????# " = "#????# ### | | ?????????????????????????# ^ """"" *T"#????# #?? | | ??????????????????+??????# """"" [""#????# #?? | | ?????????????????????????# """"" ###????#+#?? | | ??????????????????+??????# """ = #?????? +?? | | ?????????????????????????# =#?????? #?? | | ?????????## # """ #?# = ! # ????? #?? | | ????????? # """ #?### # ????? ??? | | ????????? # """ #???# = # ????? ??? | | ????????? + #???# # ????? ??? | | ????????? # "" #???## ##### # ????? ??? | | ????????? # """#????# #???# # ????? ??? | | ????????? # S"#????# #???# # ?????????? | | ????????? # #????# #???# #####+##???? | | ????????? ##########????# #???# | | ????????? ""#???????????# #???# | | ????????? Y"#???????????# #???# | | ????????? ""#???????????# #???########T##/#### | | ????????? ###???????????# #????????????#?????? | | ????????? #####?????????# #??????????????????? | | ????????? #????###??# #?????###??????????? | | ????????? ######T#### ####### ##?????????? | | ?????????## ## @ + ?????????? | | ??????????# ## #### ?????????? | | ??????????# ## #??# ?????????? | | ??????????# ## #####+##### ?????????? | | ??????????# ###### # """ # ?????????? | | ??????????# #????# # "T" # """ ?????????? | | ??????????# ###### # # """ ?????????? | | ??????????# w # # """ ?????????? | | ??????????# ###### + """ """ # ?????????? | | ??????????# #????# # """ """ #" ?????????? | | ?????????###+#####?# # """ """ #T ?????????? | | ????????? #?# # #" ?????????? | | ????????? #?# ########### ?????????? | | ????????? #?# #################?????????? | | ????????? #?# ?????????? | | ?????????????????????????????????????????????????? | | ?????????????????????????????????????????????????? | | ?????????????????????????????????????????????????? | | ?????????????????????????????????????????????????? | | ?????????????????????????????????????????????????? | | ?????????????????????????????????????????????????? | | ?????????????????????????????????????????????????? | | ?????????????????????????????????????????????????? | | ?????????????????????????????????????????????????? | | ?????????????????????????????????????????????????? | +----------------------------------------------------+ Best States ------------- Heat Dissipation 45 Energy Generation 18 Energy Capacity 250 Matter Stores 300 Matter Capacity 300 Sight Range 18 Robot Scan Range 10 Terrain Scan Density 10 Armor Coverage 150 Evasion (%) 42 Recoil Reduction 2 Particle Charging 15 Offensive Hacking 10 Defensive Hacking 10 Item Schematics ----------------- Imp. Heat Sink | -9/Materials | Scanalyzed Robot Schematics ------------------ None Fabricated ------------ Nothing Alien Tech Used ----------------- None Achievements -------------- None Challenges ------------ None Game ------ Seed SwordScatterStreamer Manual? 0 Play Time 00:32:34 Cumulative 48.9 hours Start 2020.10.29 @ 17:14:38 End 2020.10.29 @ 17:46:53 Sessions 1 Manual Loads 0 Difficulty Rogue Special Mode Halloween2020/ForbiddenLore Game No. 54 Rogue 45 Adventurer 4 Explorer 5 Win Type - Total 0 Types 0/0/0/0/0/0/0/0/0 Lore% 27 Gallery% 36 Achievement% 26 Wizard Run 0 Options --------- ASCII 0 Keyboard 1 Movement Numpad Keybinds 0 Fullscreen 2 Font 18/SmallcapsGlow Map View 76x50 Tactical HUD 1 Map Filters NONE Filters NONE Steam 1 RUN: d6953736-ea80-4f3d-beba-ce27f7358ef8